[Event "25th Zadar Open 2018"]
[Site "Zadar"]
[Date "2018.12.20"]
[Round "7.18"]
[White "Mendonca, Leon Luke"]
[Black "Biliskov, Vjekoslav"]
[Result "1/2-1/2"]
[ECO "E11"]
[WhiteElo "2350"]
[BlackElo "2313"]
[Annotator "NA"]
[PlyCount "96"]
[EventDate "2018.12.15"]
[EventType "swiss"]
[EventCountry "CRO"]
[SourceTitle "playchess.com"]
[Source "ChessBase"]
[SourceQuality "1"]
[TimeControl "40/5400+30:1800+30"]

1. d4 {[%emt 0:00:30]} d5 {[%emt 0:00:30]} 2. c4 {[%emt 0:00:00]} e6 {[%emt 0:00:00]} 3. Nf3 {[%emt 0:00:00]} Bb4+ {[%emt 0:00:00]} 4. Bd2 {[%emt 0:00:00]} a5 {[%emt 0:00:30]} 5. a3 {[%emt 0:00:00]} Bxd2+ {[%emt 0:00:30]} 6. Nbxd2 {[%emt 0:00:00]} Nf6 {[%emt 0:00:30] LiveBook: 8 Games} 7. e3 {[%emt 0:01:00]} O-O {[%emt 0:00:30]} 8. Bd3 {[%emt 0:01:30] E11: Bogo-Indian} (8. Qc2 Nbd7 9. Rd1 b6 10. cxd5 exd5 11. Bb5 c5 12. O-O Bb7 13. Qf5 Qe7 14. Nb1 Rfd8 15. Nc3 Nf8 {½-½ (47) Epishin,V (2657)-Ibragimov,I (2554) Koszalin 1999}) 8... Qe7 {[%emt 0:07:30]} 9. Qc2 {[%emt 0:06:30]} b6 $146 {[%emt 0:13:30]} ({Predecessor:} 9... c6 10. O-O Nbd7 11. Rfe1 h6 12. h3 b6 13. e4 dxe4 14. Nxe4 Nxe4 15. Bxe4 {½-½ (27) Deshmukh,A (2311)-Laxman,R (2463) Chennai 2011}) 10. Rc1 {[%emt 0:09:30]} Ba6 {[%emt 0:02:30]} 11. O-O {[%emt 0:08:30]} c5 {[%emt 0:06:30]} 12. cxd5 {[%emt 0:20:30]} exd5 {[%emt 0:07:30]} 13. Bxa6 {[%emt 0:09:30]} Nxa6 {[%emt 0:01:30]} 14. dxc5 {[%emt 0:00:30]} Nxc5 {[%emt 0:02:30]} 15. Nd4 {[%emt 0:03:30]} g6 {[%emt 0:04:30]} 16. N2f3 {[%emt 0:02:30]} Rfe8 {[%emt 0:01:30]} 17. Qe2 {[%emt 0:01:30]} Qd7 {[%emt 0:01:30]} 18. Rc2 {[%emt 0:02:30]} a4 {[%emt 0:05:30]} 19. Rd1 {[%emt 0:02:30]} Rac8 {[%emt 0:02:30]} 20. Qb5 {[%emt 0:05:30]} Qb7 {[%emt 0:02:30]} 21. h3 {[%emt 0:04:30]} Nfe4 $14 {[%emt 0:02:30]} 22. Qe2 {[%emt 0:02:28]} Nd6 {[%emt 0:07:30]} 23. Nb5 {[%emt 0:02:14]} Nce4 {[%emt 0:00:30]} 24. Rxc8 {[%emt 0:06:20]} Rxc8 {[%emt 0:00:30]} 25. Nxd6 {[%emt 0:01:45]} Nxd6 {[%emt 0:00:00]} 26. Qd3 {[%emt 0:00:38]} Nc4 {[%emt 0:05:00]} 27. Qd4 {[%emt 0:00:58]} Qc7 {[%emt 0:04:30]} 28. Nd2 {[%emt 0:00:56]} Qe5 {[%emt 0:03:33]} 29. Nxc4 {[%emt 0:04:25]} Qxd4 {[%emt 0:00:07]} 30. Rxd4 {[%emt 0:00:06]} dxc4 {[%emt 0:00:09]} 31. Rd6 {[%emt 0:00:48]} b5 {[%emt 0:02:16]} 32. Rb6 {[%emt 0:01:16]} c3 {[%emt 0:01:27]} 33. bxc3 {[%emt 0:00:05]} Rxc3 {[%emt 0:00:10]} 34. Rxb5 {[%emt 0:00:02]} Rxa3 {[%emt 0:00:12]} 35. Ra5 {[%emt 0:00:17]} Ra1+ {[%emt 0:00:25]} 36. Kh2 {[%emt 0:00:37]} h5 {[%emt 0:00:42]} 37. g4 {[%emt 0:00:22]} hxg4 {[%emt 0:04:07]} 38. hxg4 {[%emt 0:00:01]} a3 {[%emt 0:00:21]} 39. Ra8+ {[%emt 0:00:33]} Kg7 {[%emt 0:00:08]} 40. g5 {[%emt 0:00:00]} a2 {[%emt 0:00:00]} 41. Kg2 {[%emt 0:01:09]} Kh7 {[%emt 0:02:23]} 42. Kf3 {[%emt 0:01:30]} Rg1 {[%emt 0:00:30]} 43. Rxa2 {[%emt 0:00:00]} Rxg5 {[%emt 0:00:30]} 44. Rb2 {[%emt 0:00:00]} Rf5+ {[%emt 0:00:30]} 45. Kg3 {[%emt 0:00:00]} Kg7 {[%emt 0:00:30]} 46. Ra2 {[%emt 0:00:00]} Rg5+ {[%emt 0:00:00]} 47. Kf3 {[%emt 0:00:00]} Rf5+ {[%emt 0:00:00]} 48. Kg3 {[%emt 0:00:00]} Rg5+ {[%emt 0:00:30]} 1/2-1/2

[Event "25th Zadar Open 2018"]
[Site "Zadar"]
[Date "2018.12.20"]
[Round "7.19"]
[White "Bratovic, Blaz"]
[Black "Nielsen, Rogvi Egilstoft"]
[Result "0-1"]
[ECO "E18"]
[WhiteElo "2307"]
[BlackElo "2339"]
[Annotator "NA"]
[PlyCount "98"]
[EventDate "2018.12.15"]
[EventType "swiss"]
[EventCountry "CRO"]
[SourceTitle "playchess.com"]
[Source "ChessBase"]
[SourceQuality "1"]
[TimeControl "40/5400+30:1800+30"]

1. d4 {[%emt 0:01:30]} Nf6 {[%emt 0:00:30]} 2. c4 {[%emt 0:00:00]} e6 {[%emt 0:00:30]} 3. g3 {[%emt 0:00:00]} d5 {[%emt 0:03:30]} 4. Bg2 {[%emt 0:00:30]} Be7 {[%emt 0:01:30]} 5. Nf3 {[%emt 0:00:30]} O-O {[%emt 0:00:30]} 6. O-O {[%emt 0:00:00]} b6 {[%emt 0:04:30]} 7. cxd5 {[%emt 0:01:00]} exd5 {[%emt 0:00:30]} 8. Ne5 {[%emt 0:00:30]} Bb7 {[%emt 0:00:30]} 9. Nc3 {[%emt 0:05:30]} Nbd7 {[%emt 0:09:30]} 10. Bf4 {[%emt 0:07:30]} c5 {[%emt 0:08:30]} 11. dxc5 {[%emt 0:00:30]} Nxc5 {[%emt 0:01:30]} 12. Rc1 {[%emt 0:04:30]} Nfe4 {[%emt 0:07:30]} 13. Nxe4 {[%emt 0:02:30]} dxe4 {[%emt 0:02:30]} 14. Qc2 {[%emt 0:16:30] LiveBook: 10 Games E18: Queen's Indian: Old Main Line (4 g3 Bb7 5 Bg2 Be7 6 0-0 0-0 7 Nc3)} Rc8 {[%emt 0:08:30]} 15. Qb1 {[%emt 0:03:30]} Qd5 $146 {[%emt 0:01:30]} ({Predecessor:} 15... Bg5 16. Rfd1 Qf6 17. Rxc5 bxc5 18. Nd7 Qf5 19. Bxg5 Qxg5 20. Nxf8 Rxf8 21. Bxe4 Bxe4 22. Qxe4 {1-0 (89) Tukmakov,V (2585)-Dervishi,E (2305) Bern 1995}) 16. Rfd1 {[%emt 0:14:30]} Qe6 {[%emt 0:00:30]} 17. b4 {[%emt 0:07:30]} Na4 {[%emt 0:12:30] [#]} 18. Qb3 $1 {[%emt 0:04:30]} ({Wrong is} 18. Bxe4 $2 Bxe4 19. Qxe4 Nc3 $19) 18... Qxb3 {[%emt 0:01:30]} 19. axb3 {[%emt 0:00:30]} Nc3 {[%emt 0:00:30]} 20. Rxc3 {[%emt 0:00:00]} Rxc3 {[%emt 0:00:30]} 21. Rd7 {[%emt 0:00:00]} f6 {[%emt 0:12:30]} 22. Nc4 {[%emt 0:03:30]} Rxb3 {[%emt 0:03:38]} 23. Rxb7 {[%emt 0:01:30]} (23. Rxe7 $16 Rb1+ 24. Bf1) 23... Rb1+ {[%emt 0:00:53]} 24. Bf1 {[%emt 0:04:30]} Bxb4 {[%emt 0:00:38]} 25. Rxa7 {[%emt 0:06:37]} b5 {[%emt 0:05:11]} 26. Ne3 $11 {[%emt 0:01:33]} Bc5 {[%emt 0:02:39]} 27. Rb7 {[%emt 0:00:51]} g5 {[%emt 0:07:21]} 28. Bb8 {[%emt 0:00:52]} Rd8 {[%emt 0:02:42]} 29. Ng4 {[%emt 0:00:11]} Rdd1 {[%emt 0:01:03]} 30. Nxf6+ {[%emt 0:00:11]} Kf8 {[%emt 0:00:05]} 31. Nd7+ {[%emt 0:02:56]} Ke8 {[%emt 0:00:06]} 32. Nxc5 {[%emt 0:00:03]} Rxf1+ {[%emt 0:01:41]} 33. Kg2 {[%emt 0:00:00]} g4 {[%emt 0:00:00]} 34. f3 {[%emt 0:00:07]} exf3+ {[%emt 0:00:31]} 35. exf3 {[%emt 0:00:05]} Rxf3 {[%emt 0:00:26]} 36. Bd6 {[%emt 0:00:29]} Rb2+ {[%emt 0:00:12]} 37. Kg1 {[%emt 0:00:02]} Rb1+ {[%emt 0:00:58]} 38. Kg2 {[%emt 0:00:01]} Rb2+ {[%emt 0:00:09]} 39. Kg1 {[%emt 0:00:01]} Re3 {[%emt 0:00:47]} 40. Rb8+ {[%emt 0:00:00]} Kf7 {[%emt 0:00:00]} 41. Rf8+ {[%emt 0:00:31]} Kg6 {[%emt 0:05:00]} 42. Rf2 {[%emt 0:00:30]} Re1+ {[%emt 0:02:30]} 43. Kg2 {[%emt 0:00:30]} Ree2 {[%emt 0:01:30]} 44. Nd3 {[%emt 0:00:30]} Rxf2+ {[%emt 0:00:30]} 45. Nxf2 {[%emt 0:00:00]} Kf5 {[%emt 0:04:30]} 46. h3 {[%emt 0:01:00]} gxh3+ {[%emt 0:01:06]} 47. Kf3 {[%emt 0:00:30]} Ke6 {[%emt 0:00:11]} 48. Bf4 {[%emt 0:00:30]} h2 {[%emt 0:01:39]} 49. Nh1 {[%emt 0:00:00]} b4 {[%emt 0:00:21]} 0-1

[Event "25th Zadar Open 2018"]
[Site "Zadar"]
[Date "2018.12.20"]
[Round "7.20"]
[White "Bratkovic, Jakob"]
[Black "Bilobrk, Franjo"]
[Result "1-0"]
[ECO "C90"]
[WhiteElo "2239"]
[BlackElo "2364"]
[Annotator "ChessBase"]
[PlyCount "69"]
[EventDate "2018.12.15"]
[EventType "swiss"]
[EventCountry "CRO"]
[SourceTitle "playchess.com"]
[Source "ChessBase"]
[SourceQuality "1"]
[TimeControl "40/5400+30:1800+30"]

1. e4 {[%emt 0:04:30]} e5 {[%emt 0:00:30]} 2. Nf3 {[%emt 0:00:00]} Nc6 {[%emt 0:00:00]} 3. Bc4 {[%emt 0:00:00]} Nf6 {[%emt 0:00:00]} 4. d3 {[%emt 0:00:00]} Be7 {[%emt 0:00:30]} 5. O-O {[%emt 0:00:00]} O-O {[%emt 0:00:30]} 6. Re1 {[%emt 0:00:30]} d6 {[%emt 0:00:30]} 7. c3 {[%emt 0:00:00]} Na5 {[%emt 0:01:30]} 8. Bb5 {[%emt 0:00:00]} a6 {[%emt 0:00:30]} 9. Ba4 {[%emt 0:00:30]} b5 {[%emt 0:00:30]} 10. Bc2 {[%emt 0:00:00]} c5 {[%emt 0:00:00]} 11. Nbd2 {[%emt 0:01:00]} Nc6 {[%emt 0:01:00]} 12. Nf1 {[%emt 0:01:30]} h6 {[%emt 0:05:30]} 13. Ne3 {[%emt 0:11:30]} d5 {[%emt 0:00:30]} 14. Nxd5 {[%emt 0:07:30]} Nxd5 {[%emt 0:01:30]} 15. exd5 {[%emt 0:00:30]} Qxd5 {[%emt 0:00:00]} 16. d4 {[%emt 0:00:30]} cxd4 {[%emt 0:07:00]} 17. Be4 {[%emt 0:05:30]} Qd6 {[%emt 0:03:30]} 18. Nxe5 {[%emt 0:06:30]} Nxe5 {[%emt 0:00:30]} 19. Bxa8 {[%emt 0:00:00]} Ng4 {[%emt 0:10:30]} 20. g3 {[%emt 0:01:00]} dxc3 {[%emt 0:00:30]} 21. Qxd6 {[%emt 0:04:30]} Bxd6 {[%emt 0:00:00]} 22. bxc3 {[%emt 0:00:30]} Bc5 {[%emt 0:02:00]} 23. Re2 {[%emt 0:00:30]} Rd8 {[%emt 0:11:30]} 24. Bf3 {[%emt 0:09:30]} Nxf2 {[%emt 0:03:30]} 25. Rxf2 {[%emt 0:03:30]} Rd3 {[%emt 0:02:30]} 26. Be4 {[%emt 0:01:30]} Rxc3 {[%emt 0:01:30]} 27. Bd2 {[%emt 0:00:30]} Ra3 {[%emt 0:00:30]} 28. Kf1 {[%emt 0:05:30]} Bxf2 {[%emt 0:06:30]} 29. Kxf2 {[%emt 0:00:30]} Be6 {[%emt 0:00:00]} 30. Bb4 {[%emt 0:01:30]} Ra4 {[%emt 0:01:00]} 31. a3 {[%emt 0:01:30]} a5 {[%emt 0:00:00]} 32. Bc2 {[%emt 0:00:00]} axb4 {[%emt 0:01:00]} 33. Bxa4 {[%emt 0:00:00]} bxa4 {[%emt 0:00:30]} 34. axb4 {[%emt 0:00:30]} Bd7 {[%emt 0:02:30]} 35. Ke3 {[%emt 0:00:00]} 1-0

[Event "25th Zadar Open 2018"]
[Site "Zadar"]
[Date "2018.12.20"]
[Round "7.21"]
[White "Sinanovic, Muhamed"]
[Black "Bosnjak, Petar"]
[Result "1/2-1/2"]
[ECO "C00"]
[WhiteElo "2325"]
[BlackElo "2255"]
[Annotator "NA"]
[PlyCount "87"]
[EventDate "2018.12.15"]
[EventType "swiss"]
[EventCountry "CRO"]
[SourceTitle "playchess.com"]
[Source "ChessBase"]
[SourceQuality "1"]
[TimeControl "40/5400+30:1800+30"]

1. g3 {[%emt 0:00:30]} d5 {[%emt 0:00:30]} 2. Bg2 {[%emt 0:00:00]} Nf6 {[%emt 0:00:30]} 3. Nf3 {[%emt 0:00:00]} e6 {[%emt 0:00:30]} 4. O-O {[%emt 0:00:30]} Be7 {[%emt 0:00:30]} 5. d3 {[%emt 0:00:00]} c5 {[%emt 0:00:30]} 6. Nbd2 {[%emt 0:04:00]} Nc6 {[%emt 0:00:30]} 7. e4 {[%emt 0:00:00] LiveBook: 1828 Games} Qc7 {[%emt 0:02:30]} 8. Re1 {[%emt 0:01:00]} b6 {[%emt 0:06:30]} 9. Nf1 {[%emt 0:06:30]} d4 {[%emt 0:06:30] C00: French: Unusual White 2nd moves} 10. Nh4 $146 {[%emt 0:12:30]} ({Predecessor:} 10. N1d2 e5 11. a4 Be6 12. Nc4 Nd7 13. Ng5 Bxg5 14. Bxg5 O-O 15. Bd2 a6 16. f4 f6 17. f5 {½-½ (69) Hausner,I (2451)-Bernasek,J (2495) Teplice 2010}) 10... Nd7 {[%emt 0:09:30]} 11. f4 {[%emt 0:05:30]} Bb7 {[%emt 0:13:30]} 12. Nf3 {[%emt 0:03:30]} b5 {[%emt 0:01:30]} 13. g4 {[%emt 0:02:30]} h5 {[%emt 0:14:30]} 14. gxh5 {[%emt 0:05:30]} Nf6 {[%emt 0:13:30]} 15. Ng3 {[%emt 0:01:30]} Nxh5 {[%emt 0:01:30]} 16. Nxh5 {[%emt 0:03:30]} Rxh5 {[%emt 0:00:30]} 17. Ng5 {[%emt 0:02:30]} Rh4 {[%emt 0:02:30]} 18. Nf3 {[%emt 0:03:30]} Rh8 {[%emt 0:00:00]} 19. c3 {[%emt 0:01:30]} Rd8 {[%emt 0:03:00]} 20. cxd4 {[%emt 0:03:30]} Nxd4 {[%emt 0:05:56]} 21. Nxd4 {[%emt 0:00:00]} cxd4 {[%emt 0:02:39]} ({Black should play} 21... Rxd4 $17 22. Be3 Rd7) 22. Bd2 {[%emt 0:01:00]} a5 {[%emt 0:00:39]} 23. Rc1 {[%emt 0:00:30]} Qb6 {[%emt 0:00:05]} 24. Qg4 {[%emt 0:00:30]} Kf8 {[%emt 0:01:27]} 25. Rf1 {[%emt 0:04:30]} Rc8 {[%emt 0:02:53]} 26. Rxc8+ {[%emt 0:01:30]} Bxc8 {[%emt 0:00:04]} 27. e5 {[%emt 0:00:30]} g6 {[%emt 0:02:39]} 28. Rc1 {[%emt 0:13:30]} Kg7 {[%emt 0:03:07]} 29. Qf3 {[%emt 0:00:00]} b4 {[%emt 0:01:35]} 30. Qc6 {[%emt 0:01:00]} Qd8 $14 {[%emt 0:00:13]} 31. Qc7 {[%emt 0:03:30]} Ba6 {[%emt 0:01:13]} 32. Be4 {[%emt 0:00:30]} Bh4 {[%emt 0:00:40]} 33. Qxd8 {[%emt 0:01:30]} Rxd8 {[%emt 0:00:10]} 34. Kf1 {[%emt 0:08:49]} Rc8 {[%emt 0:00:54]} 35. Ke2 {[%emt 0:01:05]} Rxc1 {[%emt 0:00:51]} 36. Bxc1 {[%emt 0:00:01]} Bb5 {[%emt 0:00:42]} 37. b3 {[%emt 0:01:15]} Be7 {[%emt 0:00:26]} 38. Kf3 {[%emt 0:00:12]} Bc5 {[%emt 0:01:08]} 39. Bd2 {[%emt 0:00:37]} Bb6 {[%emt 0:00:43]} 40. h4 {[%emt 0:00:00]} Bc5 {[%emt 0:00:00]} 41. Kg4 {[%emt 0:01:01]} Be8 {[%emt 0:06:56]} 42. Bc1 {[%emt 0:03:30]} Kg8 {[%emt 0:02:30]} 43. Bd2 {[%emt 0:00:30]} Kg7 {[%emt 0:00:00]} 44. Bc1 {[%emt 0:00:30]} 1/2-1/2

[Event "25th Zadar Open 2018"]
[Site "Zadar"]
[Date "2018.12.20"]
[Round "7.22"]
[White "Sokac, Marko"]
[Black "Warakomska, Anna"]
[Result "1-0"]
[ECO "C27"]
[WhiteElo "2301"]
[BlackElo "2233"]
[Annotator "NA"]
[PlyCount "93"]
[EventDate "2018.12.15"]
[EventType "swiss"]
[EventCountry "CRO"]
[SourceTitle "playchess.com"]
[Source "ChessBase"]
[SourceQuality "1"]
[TimeControl "40/5400+30:1800+30"]

1. e4 {[%emt 0:00:30]} e5 {[%emt 0:00:30]} 2. Bc4 {[%emt 0:00:30]} Nf6 {[%emt 0:00:30]} 3. Nc3 {[%emt 0:00:30]} Nxe4 {[%emt 0:03:30]} 4. Qh5 {[%emt 0:01:30]} Nd6 {[%emt 0:00:30]} 5. Bb3 {[%emt 0:00:00]} Be7 {[%emt 0:00:00]} 6. Qxe5 {[%emt 0:00:00]} O-O {[%emt 0:00:00] C27: Vienna Game: 2...Nf6 3 Bc4 Nxe4} 7. d4 {[%emt 0:00:30]} b5 {[%emt 0:01:30]} 8. a3 {[%emt 0:04:30]} Nc6 {[%emt 0:10:30]} 9. Qf4 $1 {[%emt 0:00:30]} Bb7 $146 {[%emt 0:01:30]} ({Predecessor:} 9... a5 10. Nd5 Re8 11. Ne2 b4 12. Be3 Ba6 13. Qf3 Bf8 14. O-O Bxe2 15. Qxe2 Nxd4 {0-1 (32) Yeletsky,I (2342)-Aleksandrov,A (2606) St Petersburg 2015}) 10. Nf3 {[%emt 0:03:30]} Na5 {[%emt 0:05:30]} 11. Bd5 {[%emt 0:00:30]} Bxd5 {[%emt 0:02:30]} 12. Nxd5 {[%emt 0:00:30]} c6 {[%emt 0:00:30]} 13. Ne3 {[%emt 0:03:30]} Nac4 {[%emt 0:05:30]} 14. O-O {[%emt 0:01:30]} f5 {[%emt 0:05:30]} 15. Nxc4 {[%emt 0:04:30]} Nxc4 {[%emt 0:00:30]} 16. b3 {[%emt 0:01:30]} Nb6 {[%emt 0:05:30]} 17. Re1 {[%emt 0:03:30]} a5 {[%emt 0:06:30]} 18. Qg3 {[%emt 0:05:30]} a4 {[%emt 0:14:30]} 19. Bf4 {[%emt 0:00:30]} Nd5 {[%emt 0:00:30]} 20. Be5 {[%emt 0:00:30]} Rf7 {[%emt 0:08:30]} 21. c4 {[%emt 0:01:30]} f4 {[%emt 0:02:30]} 22. Qg4 {[%emt 0:02:30]} Nb6 {[%emt 0:00:30]} 23. c5 {[%emt 0:08:30]} Nd5 {[%emt 0:00:00]} 24. b4 {[%emt 0:00:30]} g6 {[%emt 0:05:35]} 25. Rac1 {[%emt 0:06:30]} Rf5 {[%emt 0:00:35]} 26. h4 {[%emt 0:06:30]} Qf8 {[%emt 0:01:02]} 27. h5 {[%emt 0:00:30]} Qh6 {[%emt 0:01:37]} 28. hxg6 {[%emt 0:00:30]} Qxg6 {[%emt 0:03:39]} 29. Qxg6+ {[%emt 0:04:30]} hxg6 {[%emt 0:00:01]} 30. Kf1 {[%emt 0:00:00]} g5 {[%emt 0:02:33]} 31. Ke2 {[%emt 0:01:00]} g4 {[%emt 0:00:44]} 32. Nh2 {[%emt 0:01:30]} Rg5 {[%emt 0:01:21]} 33. Kd3 {[%emt 0:02:30]} Rf8 {[%emt 0:02:34]} 34. f3 {[%emt 0:00:30]} gxf3 {[%emt 0:04:14]} 35. gxf3 {[%emt 0:00:30]} Kf7 {[%emt 0:03:28]} 36. Ng4 {[%emt 0:00:30]} Rh5 {[%emt 0:00:21]} 37. Rh1 $11 {[%emt 0:03:30]} Rxh1 {[%emt 0:00:04]} 38. Rxh1 {[%emt 0:00:00]} Kg6 {[%emt 0:00:56]} 39. Rh6+ {[%emt 0:07:00]} Kf5 {[%emt 0:00:07]} 40. Rh7 {[%emt 0:00:00]} Ke6 {[%emt 0:00:00]} 41. Rh6+ {[%emt 0:05:00]} Kf5 {[%emt 0:03:39]} 42. Bd6 {[%emt 0:02:30]} Re8 {[%emt 0:06:30]} 43. Rh5+ {[%emt 0:03:30]} Kg6 {[%emt 0:00:30]} 44. Re5 {[%emt 0:01:30]} Kf7 {[%emt 0:01:30]} 45. Nh6+ {[%emt 0:00:30]} Kf8 {[%emt 0:01:30]} 46. Rg5 {[%emt 0:03:30]} Nf6 {[%emt 0:04:16]} 47. Bxf4 {[%emt 0:05:30]} 1-0

[Event "25th Zadar Open 2018"]
[Site "Zadar"]
[Date "2018.12.20"]
[Round "7.23"]
[White "Djoric, Dusan"]
[Black "Ermeni, Avni"]
[Result "1-0"]
[ECO "B04"]
[WhiteElo "2298"]
[BlackElo "2183"]
[Annotator "NA"]
[PlyCount "67"]
[EventDate "2018.12.15"]
[EventType "swiss"]
[EventCountry "CRO"]
[SourceTitle "playchess.com"]
[Source "ChessBase"]
[SourceQuality "1"]
[TimeControl "40/5400+30:1800+30"]

1. e4 {[%emt 0:04:30]} Nf6 {[%emt 0:00:30]} 2. e5 {[%emt 0:00:00]} Nd5 {[%emt 0:00:00]} 3. c4 {[%emt 0:00:00]} Nb6 {[%emt 0:00:00]} 4. d4 {[%emt 0:00:30]} d6 {[%emt 0:00:30]} 5. exd6 {[%emt 0:00:30]} cxd6 {[%emt 0:00:00]} 6. Nc3 {[%emt 0:00:00]} g6 {[%emt 0:00:00]} 7. Be3 {[%emt 0:03:00]} Bg7 {[%emt 0:00:00]} 8. h3 {[%emt 0:02:30]} O-O {[%emt 0:00:00]} 9. Nf3 {[%emt 0:00:00]} Nc6 {[%emt 0:03:30]} 10. Be2 {[%emt 0:01:00]} e5 {[%emt 0:10:30] B04: Alekhine's Defence: 4 Nf3} (10... Bf5 11. O-O d5 12. c5 Nc4 13. Bc1 b6 14. b3 N4a5 15. cxb6 axb6 16. Bf4 Be4 17. Nb5 Qd7 18. Qd2 Rfc8 19. Rac1 Nb7 20. Ne5 Nxe5 21. Bxe5 Bxe5 22. dxe5 {1-0 (37) Efimenko,Z (2643)-Bortnyk,O (2533) Wroclaw 2014}) 11. dxe5 {[%emt 0:02:30]} Nxe5 {[%emt 0:05:30]} 12. Nxe5 {[%emt 0:01:30]} Bxe5 {[%emt 0:00:30]} 13. Rc1 $146 {[%emt 0:14:30]} ({Predecessor:} 13. O-O Be6 14. Qb3 Qh4 15. Nd5 Nxd5 16. cxd5 Bxh3 17. f4 Qg3 18. Bf3 {1-0 (41) Rahls,P (2239)-Sandmeier,T (2197) Bad Neuenahr 2014}) 13... Be6 {[%emt 0:09:30]} 14. b3 {[%emt 0:03:30]} d5 {[%emt 0:17:30] LiveBook: 3 Games} 15. Nxd5 {[%emt 0:03:30]} Nxd5 {[%emt 0:01:30]} 16. cxd5 {[%emt 0:00:00]} Qxd5 {[%emt 0:10:30]} 17. O-O {[%emt 0:07:00]} Qe4 {[%emt 0:10:30]} 18. Bd3 {[%emt 0:13:30]} ({Better is} 18. Bf3 $16 Qf5 19. Bxb7) 18... Qh4 {[%emt 0:05:30]} 19. f4 {[%emt 0:01:30]} Bd6 {[%emt 0:03:33]} 20. Qf3 {[%emt 0:03:30]} Rfe8 {[%emt 0:10:36]} 21. Qf2 {[%emt 0:09:30]} Qh5 $14 {[%emt 0:03:43]} 22. Be2 {[%emt 0:02:30]} Qa5 {[%emt 0:00:43]} 23. Bf3 {[%emt 0:00:30]} Bd5 {[%emt 0:01:48]} 24. Rfd1 {[%emt 0:11:13]} Bxf3 {[%emt 0:00:37]} 25. Rxd6 {[%emt 0:01:47]} Bc6 {[%emt 0:00:21]} 26. Rcd1 {[%emt 0:04:14]} Qh5 {[%emt 0:00:35]} 27. R1d2 {[%emt 0:02:08]} Re4 {[%emt 0:00:19]} 28. Bd4 {[%emt 0:02:59]} Re6 {[%emt 0:01:12]} 29. Rxe6 {[%emt 0:00:19]} fxe6 {[%emt 0:00:01]} 30. Bb2 {[%emt 0:00:39]} Rf8 {[%emt 0:02:51]} 31. Qd4 {[%emt 0:00:29]} e5 {[%emt 0:00:47]} 32. Qc4+ {[%emt 0:00:32]} Kg7 {[%emt 0:00:12]} 33. Bxe5+ {[%emt 0:00:30]} Kh6 {[%emt 0:00:03]} 34. g4 {[%emt 0:02:32]} 1-0

[Event "25th Zadar Open 2018"]
[Site "Zadar"]
[Date "2018.12.20"]
[Round "7.24"]
[White "Karthik Kumar Pradeep"]
[Black "Ojas Kulkarni"]
[Result "1/2-1/2"]
[ECO "A50"]
[WhiteElo "2230"]
[BlackElo "2282"]
[Annotator "ChessBase"]
[PlyCount "143"]
[EventDate "2018.12.15"]
[EventType "swiss"]
[EventCountry "CRO"]
[SourceTitle "playchess.com"]
[Source "ChessBase"]
[SourceQuality "1"]
[TimeControl "40/5400+30:1800+30"]

1. d4 {[%emt 0:00:30]} Nf6 {[%emt 0:00:30]} 2. c4 {[%emt 0:00:30]} b6 {[%emt 0:00:30]} 3. f3 {[%emt 0:00:00]} d6 {[%emt 0:00:00]} 4. e4 {[%emt 0:03:00]} e5 {[%emt 0:01:00]} 5. d5 {[%emt 0:00:00]} Be7 {[%emt 0:01:30]} 6. Be3 {[%emt 0:01:00]} Nh5 {[%emt 0:00:30]} 7. Nc3 {[%emt 0:07:30]} Nd7 {[%emt 0:04:30]} 8. Nge2 {[%emt 0:05:30]} Bg5 {[%emt 0:04:30]} 9. Bf2 {[%emt 0:01:30]} Nf4 {[%emt 0:00:30]} 10. h4 {[%emt 0:01:30]} Nxe2 {[%emt 0:00:30]} 11. Qxe2 {[%emt 0:01:30]} Be7 {[%emt 0:01:30]} 12. g3 {[%emt 0:01:30]} a5 {[%emt 0:05:30]} 13. Bh3 {[%emt 0:03:30]} Nc5 {[%emt 0:05:30]} 14. Bxc8 {[%emt 0:07:30]} Qxc8 {[%emt 0:00:00]} 15. Bxc5 {[%emt 0:10:30]} bxc5 {[%emt 0:01:00]} 16. O-O-O {[%emt 0:08:30]} a4 {[%emt 0:04:30]} 17. a3 {[%emt 0:00:30]} h5 {[%emt 0:05:30]} 18. f4 {[%emt 0:10:30]} Bf6 {[%emt 0:03:30]} 19. f5 {[%emt 0:01:30]} Qa6 {[%emt 0:08:30]} 20. Nb5 {[%emt 0:03:30]} Kd7 {[%emt 0:00:30]} 21. Rhf1 {[%emt 0:00:30]} Rab8 {[%emt 0:06:30]} 22. Rd3 {[%emt 0:00:30]} Rb7 {[%emt 0:04:30]} 23. Rc3 {[%emt 0:00:30]} Ke7 {[%emt 0:01:30]} 24. Rf2 {[%emt 0:00:30]} Qa5 {[%emt 0:01:30]} 25. Kd1 {[%emt 0:00:30]} Rbb8 {[%emt 0:01:30]} 26. Rcf3 {[%emt 0:03:30]} Rb7 {[%emt 0:01:30]} 27. Qd2 {[%emt 0:01:30]} Qa6 {[%emt 0:04:30]} 28. Ke1 {[%emt 0:01:30]} Kd7 {[%emt 0:00:30]} 29. Kf1 {[%emt 0:01:30]} Rbb8 {[%emt 0:02:30]} 30. Kg2 {[%emt 0:00:30]} Rb7 {[%emt 0:02:30]} 31. Kh2 {[%emt 0:00:00]} Ke7 {[%emt 0:00:30]} 32. Rf1 {[%emt 0:03:00]} Ra8 {[%emt 0:08:35]} 33. Rc3 {[%emt 0:00:30]} Qa5 {[%emt 0:00:59]} 34. Qe2 {[%emt 0:00:30]} Rh8 {[%emt 0:00:09]} 35. Kg2 {[%emt 0:00:30]} Kd7 {[%emt 0:00:17]} 36. Ra1 {[%emt 0:00:00]} Ke7 {[%emt 0:00:30]} 37. Qc2 {[%emt 0:00:00]} Ra8 {[%emt 0:00:30]} 38. Qd1 {[%emt 0:00:30]} Rh8 {[%emt 0:00:00]} 39. Rac1 {[%emt 0:00:30]} Rbb8 {[%emt 0:02:13]} 40. Qe2 {[%emt 0:00:00]} Rb7 {[%emt 0:00:00]} 41. Ra1 {[%emt 0:01:00]} Rbb8 {[%emt 0:01:47]} 42. Rd3 {[%emt 0:06:30]} Rb7 {[%emt 0:00:30]} 43. Qd2 {[%emt 0:00:30]} Ra8 {[%emt 0:02:30]} 44. Qxa5 {[%emt 0:06:30]} Rxa5 {[%emt 0:00:00]} 45. Rf1 {[%emt 0:00:00]} Kd7 {[%emt 0:00:00]} 46. Rf2 {[%emt 0:00:00]} Rb8 {[%emt 0:00:30]} 47. Kf1 {[%emt 0:00:30]} Rh8 {[%emt 0:01:30]} 48. Ke1 {[%emt 0:00:30]} Rb8 {[%emt 0:00:00]} 49. Kd1 {[%emt 0:00:30]} Rh8 {[%emt 0:01:00]} 50. Kc1 {[%emt 0:00:00]} Rb8 {[%emt 0:00:30]} 51. Kb1 {[%emt 0:00:00]} Rh8 {[%emt 0:04:30]} 52. Ka2 {[%emt 0:00:30]} Rha8 {[%emt 0:00:30]} 53. Rg2 {[%emt 0:00:30]} Rh8 {[%emt 0:00:30]} 54. Rd1 {[%emt 0:00:30]} Rha8 {[%emt 0:03:30]} 55. Rh1 {[%emt 0:06:30]} Rh8 {[%emt 0:00:30]} 56. Nc3 {[%emt 0:00:30]} Ra6 {[%emt 0:01:30]} 57. b3 {[%emt 0:04:30]} axb3+ {[%emt 0:01:30]} 58. Kxb3 {[%emt 0:00:00]} Rb8+ {[%emt 0:00:30]} 59. Nb5 {[%emt 0:00:00]} Rh8 {[%emt 0:00:30]} 60. a4 {[%emt 0:13:30]} Rha8 {[%emt 0:00:30]} 61. Ra2 {[%emt 0:00:30]} Ra5 {[%emt 0:00:30]} 62. Rb1 {[%emt 0:00:30]} Rb8 {[%emt 0:03:30]} 63. Ka3 {[%emt 0:01:30]} Rba8 {[%emt 0:00:00]} 64. Nc3 {[%emt 0:00:30]} Be7 {[%emt 0:01:00]} 65. Rab2 {[%emt 0:00:30]} Kc8 {[%emt 0:00:30]} 66. Rg1 {[%emt 0:01:06]} Bf6 {[%emt 0:00:30]} 67. Rb5 {[%emt 0:01:32]} R5a6 {[%emt 0:00:30]} 68. Rgb1 {[%emt 0:03:50]} R6a7 {[%emt 0:03:30]} 69. R1b2 {[%emt 0:08:33]} Be7 {[%emt 0:00:30]} 70. Rb1 {[%emt 0:00:41]} Bf6 {[%emt 0:00:30]} 71. R1b2 {[%emt 0:00:05]} Be7 {[%emt 0:00:00]} 72. Rb1 {[%emt 0:00:02]} 1/2-1/2